bitfinex-derivatives/quotes_SOLF0:USTF0_20250929
["timestamp","ask_amount","ask_price","bid_price","bid_amount"]
[1759170435265,7.52,209.49,209.46,7.69]
[1759170436873,11.8126,209.53,209.46,7.69]
[1759170437473,11.8126,209.53,209.46,11.9837]
[1759170437673,11.8126,209.53,209.47,2.04400778]
[1759170442272,7.52,209.53,209.47,6.33750778]
[1759170442474,7.52,209.53,209.47,2.04400778]
[1759170442977,7.52,209.57,209.51,2.04400778]
[1759170444381,7.52,209.57,209.49,10.87674473]
[1759170444679,7.52,209.57,209.51,4.2929]
[1759170446181,7.52,209.57,209.51,12.0729]
[1759170449271,7.52,209.57,209.52,4.2926]
[1759170449478,4.2911,209.6,209.53,7.78]
[1759170449684,12.3711,209.6,209.53,7.78]
[1759170454287,4.2914,209.59,209.53,7.78]
[1759170456883,8.08,209.6,209.51,3.18674473]
[1759170457189,8.08,209.65,209.58,7.78]
[1759170457778,13.19971019,209.69,209.62,4.2906]
[1759170458386,12.3693,209.69,209.61,7.78]
[1759170459689,12.3693,209.69,209.61,12.0708]
[1759170460284,8.08,209.69,209.61,7.78]
[1759170461393,4.2898,209.67,209.61,7.78]
[1759170462789,12.3693,209.69,209.61,12.0708]
[1759170463683,12.3693,209.69,209.62,4.2905]
[1759170464694,8.08,209.69,209.63,7.78]
[1759170467595,12.3694,209.69,209.63,7.78]
[1759170467989,8.08,209.69,209.63,7.78]
[1759170468500,8.08,209.67,209.63,7.78]
[1759170470104,8.08,209.67,209.62,4.2906]
[1759170470401,8.08,209.67,209.62,12.0706]
[1759170471294,8.08,209.67,209.62,4.2906]
[1759170471500,8.08,209.67,209.63,7.78]
[1759170472397,8.08,209.67,209.62,4.2906]
[1759170472598,8.08,209.67,209.63,7.78]
[1759170473397,13.19920122,209.71,209.63,12.0704]
[1759170473602,12.3689,209.71,209.63,7.78]
[1759170473791,8.08,209.71,209.63,7.78]
[1759170473997,8.08,209.67,209.63,7.78]
[1759170474200,7.8,209.67,209.63,7.78]
[1759170475407,12.0896,209.68,209.62,11.6806]
[1759170475797,7.8,209.65,209.6,4.291]
[1759170476002,4.2899,209.66,209.6,4.291]
[1759170476206,12.0899,209.66,209.6,4.291]
[1759170478299,7.8,209.66,209.61,4.2908]
[1759170479097,7.8,209.66,209.62,7.39]
[1759170479802,7.8,209.7,209.59,14.86794473]
[1759170480199,66.7167,209.71,209.59,14.86794473]
[1759170480702,4.29,209.66,209.6,4.291]
[1759170480905,7.8,209.67,209.59,10.57674473]
[1759170482199,7.8,209.73,209.6,7.39]
[1759170482396,10.98674473,209.73,209.6,7.39]
[1759170483100,7.8,209.73,209.62,3.18674473]
[1759170483405,7.8,209.73,209.63,7.39]
[1759170483705,4.289,209.71,209.63,7.39]
[1759170483904,7.8,209.7,209.63,7.39]
[1759170484704,7.8,209.7,209.63,11.6804]
[1759170485107,12.0892,209.7,209.63,11.6804]
[1759170485701,7.8,209.7,209.63,11.6804]
[1759170485906,7.8,209.7,209.63,7.39]
[1759170486304,12.91850218,209.74,209.67,7.39]
[1759170486500,7.8,209.78,209.67,7.39]
[1759170486698,7.8,209.78,209.71,3.18674473]
[1759170486904,7.8,209.83,209.75,7.39]
[1759170487603,12.0864,209.83,209.75,11.6779]
[1759170487802,7.8,209.83,209.71,7.39]
[1759170488602,4.287,209.81,209.72,4.2884]
[1759170489006,12.087,209.81,209.72,4.2884]
[1759170489203,12.087,209.81,209.72,18.44023939]
[1759170489404,7.8,209.8,209.71,7.39]
[1759170490806,12.0872,209.79,209.71,7.39]
[1759170492013,7.8,209.79,209.72,7.39]
[1759170492813,4.2868,209.81,209.73,7.39]
[1759170493316,4.2868,209.81,209.73,10.57674473]
[1759170493813,4.2868,209.81,209.74,7.39]
[1759170494006,12.0864,209.83,209.74,7.39]
[1759170495512,7.8,209.83,209.74,7.39]
[1759170495712,7.8,209.83,209.77,7.37]
[1759170495912,7.73,209.86,209.77,7.37]
[1759170496711,7.73,209.86,209.78,7.37]
[1759170497703,7.73,209.86,209.78,11.6572]
[1759170499713,7.73,209.86,209.79,7.37]
[1759170500919,12.0152,209.89,209.8,7.37]
[1759170501115,7.73,209.89,209.8,7.37]
[1759170504220,7.73,209.89,209.81,2.03381037]
[1759170504514,8.03,209.87,209.78,2.03381037]
[1759170504722,8.03,209.85,209.78,2.03381037]
[1759170505214,2.03381037,209.86,209.72,22.06319396]
[1759170505215,8.03,209.82,209.72,22.06319396]
[1759170505416,8.03,209.81,209.73,2.03381037]
[1759170505917,12.317,209.81,209.73,2.03381037]
[1759170506319,8.03,209.81,209.73,2.03381037]
[1759170506517,8.03,209.81,209.75,2.03381037]
[1759170507321,12.3164,209.84,209.75,6.32171037]
[1759170507819,12.3164,209.84,209.77,2.03381037]
[1759170509119,4.2866,209.83,209.75,4.2879]
[1759170509316,4.2866,209.83,209.75,6.32171037]
[1759170510423,8.03,209.84,209.77,2.03381037]
[1759170510623,8.03,209.84,209.77,10.08381037]
[1759170511321,8.03,209.88,209.81,2.03381037]
[1759170511712,4.2856,209.87,209.81,2.03381037]
[1759170512019,8.03,209.88,209.85,2.03381037]
[1759170512424,8.03,209.89,209.83,10.08381037]
[1759170512613,8.03,209.89,209.83,2.03381037]
[1759170512817,8.03,209.89,209.81,2.03381037]
[1759170513223,4.2857,209.87,209.81,2.03381037]
[1759170514325,8.03,209.85,209.79,2.03381037]
[1759170514922,12.3161,209.85,209.79,2.03381037]
[1759170515222,8.03,209.85,209.77,2.03381037]
[1759170515422,4.2863,209.84,209.77,2.03381037]
[1759170516311,8.03,209.83,209.76,2.03381037]
[1759170516919,4.2867,209.82,209.76,2.03381037]
[1759170517119,8.03,209.83,209.76,2.03381037]
[1759170517922,8.03,209.83,209.76,6.32151037]
[1759170519626,12.3165,209.83,209.76,6.32151037]
[1759170519827,8.03,209.83,209.76,2.03381037]
[1759170520326,8.03,209.83,209.74,6.32201037]
[1759170520519,4.2868,209.81,209.74,6.32201037]
[1759170520723,8.03,209.8,209.74,2.03381037]
[1759170521828,8.03,209.8,209.74,10.08381037]
[1759170522526,8.03,209.8,209.74,2.03381037]
[1759170523122,8.03,209.8,209.74,6.32201037]
[1759170524423,8.03,209.8,209.75,4.2879]
[1759170524923,8.03,209.8,209.76,8.05]
[1759170525317,8.03,209.81,209.75,4.2879]
[1759170526232,8.03,209.81,209.74,10.08381037]
[1759170526233,12.3169,209.81,209.74,10.08381037]
[1759170526528,8.03,209.81,209.74,10.08381037]
[1759170526925,2.03381037,209.84,209.76,10.08381037]
[1759170527126,8.03,209.83,209.76,10.08381037]
[1759170527630,12.3165,209.83,209.76,10.08381037]
[1759170528732,4.2867,209.82,209.76,2.03381037]
[1759170528932,8.03,209.81,209.76,2.03381037]
[1759170529133,4.2867,209.82,209.76,2.03381037]
[1759170529434,8.03,209.81,209.76,2.03381037]
[1759170529826,4.2867,209.82,209.76,2.03381037]
[1759170530026,8.03,209.81,209.76,2.03381037]
[1759170530731,12.3167,209.82,209.76,2.03381037]
[1759170531433,8.03,209.82,209.76,6.32151037]
[1759170531732,8.03,209.82,209.76,2.03381037]
[1759170531930,4.2862,209.84,209.78,2.03381037]
[1759170534132,12.3765,209.83,209.78,9.95381037]
[1759170534429,8.09,209.82,209.78,2.03381037]
[1759170534634,2.03381037,209.85,209.76,2.03381037]
[1759170534834,8.09,209.84,209.76,2.03381037]
[1759170535237,4.2864,209.83,209.76,14.24151037]
[1759170535437,8.09,209.84,209.76,14.24151037]
[1759170535636,8.09,209.85,209.76,14.24151037]
[1759170536145,8.09,209.81,209.73,2.03381037]
[1759170536637,4.2873,209.79,209.73,2.03381037]
[1759170537034,12.3768,209.81,209.75,2.03381037]
[1759170537231,12.3768,209.81,209.75,9.95381037]
[1759170538935,12.3768,209.81,209.75,14.24171037]
[1759170540136,8.09,209.81,209.75,14.24171037]
[1759170541143,12.3769,209.81,209.75,14.24171037]
[1759170545349,12.3769,209.81,209.75,9.95381037]
[1759170546452,72.71631384,209.87,209.79,2.03381037]
[1759170546453,8.09,209.85,209.79,2.03381037]
[1759170546749,75.51,209.87,209.82,7.92]
[1759170546952,8.09,209.86,209.82,7.92]
[1759170547745,71.7057,209.87,209.82,7.92]
[1759170548049,8.09,209.86,209.82,7.92]
[1759170548450,12.3759,209.86,209.82,7.92]
[1759170548753,8.09,209.85,209.81,9.95381037]
[1759170549053,8.09,209.85,209.81,2.03381037]
[1759170549252,8.09,209.85,209.82,7.92]
[1759170549556,4.2859,209.86,209.82,7.92]
[1759170549754,12.3759,209.86,209.82,7.92]
[1759170550354,67.42,209.87,209.81,7.92]
[1759170550655,8.09,209.9,209.83,7.92]
[1759170551053,8.09,209.9,209.86,7.92]
[1759170551856,8.09,209.9,209.85,2.03381037]
[1759170552056,8.09,209.9,209.86,7.92]
[1759170552256,8.09,209.9,209.85,2.03381037]
[1759170552456,8.09,209.9,209.86,7.92]
[1759170552956,8.09,209.9,209.85,2.03381037]
[1759170553158,8.09,209.9,209.86,7.92]
[1759170554152,8.09,209.9,209.85,6.31961037]
[1759170554653,8.09,209.9,209.86,7.91]
[1759170557154,8.09,209.9,209.85,6.31961037]
[1759170557362,8.09,209.9,209.86,7.91]
[1759170557558,4.2847,209.92,209.85,2.03381037]
[1759170557758,7.96,209.91,209.85,2.03381037]
[1759170557958,7.96,209.91,209.83,2.03381037]
[1759170558360,4.2851,209.9,209.83,2.03381037]
[1759170559448,7.96,209.92,209.83,2.03381037]
[1759170559654,7.96,209.92,209.67,66.7277]
[1759170559655,7.96,209.86,209.78,2.03381037]
[1759170559957,7.96,209.84,209.76,2.03381037]
[1759170560160,4.2865,209.83,209.76,4.2878]
[1759170560660,4.2865,209.83,209.76,6.32161037]
[1759170560862,7.96,209.84,209.77,4.2875]
[1759170561056,7.96,209.84,209.78,9.94381037]
[1759170561756,2.03381037,209.79,209.69,7.91]
[1759170561955,7.96,209.78,209.69,7.91]
[1759170562262,4.2878,209.77,209.69,14.23291037]
[1759170562463,9.99381037,209.78,209.69,9.94381037]
[1759170563362,2.03381037,209.8,209.72,7.91]
[1759170563662,7.96,209.81,209.73,2.03381037]
[1759170564358,7.96,209.81,209.72,7.91]
[1759170564558,7.96,209.81,209.72,9.94381037]
[1759170565258,4.2872,209.8,209.72,14.23231037]
[1759170566264,4.2872,209.8,209.72,12.1985]
[1759170566466,4.2872,209.8,209.72,7.91]
[1759170568464,7.96,209.81,209.72,7.91]
[1759170569552,7.96,209.81,209.73,4.2882]
[1759170573467,7.96,209.81,209.72,7.91]
[1759170574669,4.2872,209.79,209.72,7.91]
[1759170575076,7.74,209.78,209.72,7.91]
[1759170575665,7.74,209.83,209.72,7.91]
[1759170575865,7.74,209.83,209.74,7.47]
[1759170578569,7.74,209.81,209.74,7.47]
[1759170579564,7.74,209.86,209.74,7.47]
[1759170580168,2.39571127,209.89,209.79,3.18058234]
[1759170580364,2.39571127,209.89,209.8,7.47]
[1759170581573,2.39571127,209.89,209.81,4.2866]
[1759170582466,6.68101127,209.89,209.81,4.2866]
[1759170584481,7.74,209.87,209.8,7.47]
[1759170585774,12.0258,209.87,209.8,11.7568]
[1759170587768,4.2859,209.86,209.78,4.2874]
[1759170589068,7.74,209.85,209.78,4.2874]
[1759170591984,12.0261,209.85,209.78,4.2874]
[1759170592185,72.23639361,209.89,209.77,7.47]
[1759170592384,7.74,209.88,209.77,7.47]
[1759170593585,4.2863,209.84,209.77,7.47]
[1759170593781,12.0263,209.84,209.77,7.47]
[1759170594287,7.74,209.84,209.77,7.47]
[1759170596789,7.37,209.81,209.77,7.47]
[1759170597183,7.37,209.81,209.76,4.2878]
[1759170597677,7.37,209.81,209.77,7.91]
[1759170599894,7.37,209.81,209.76,4.2878]
[1759170600288,7.37,209.81,209.77,7.91]
[1759170600483,11.6569,209.81,209.74,4.2882]
[1759170600689,168.8751,209.84,209.7,7.91]
[1759170600889,7.37,209.78,209.7,7.91]
[1759170601085,7.37,209.74,209.7,7.91]
[1759170601591,7.37,209.73,209.66,12.1998]
[1759170601986,7.37,209.73,209.66,7.91]
[1759170602488,7.37,209.77,209.67,7.91]
[1759170602692,7.37,209.81,209.68,3.18058234]
[1759170602894,7.37,209.81,209.69,7.91]
[1759170603194,7.37,209.79,209.69,7.91]
[1759170603497,7.37,209.79,209.68,4.2893]
[1759170604392,7.37,209.73,209.68,4.2893]
[1759170604596,4.2884,209.74,209.66,26.84040768]
[1759170604597,11.6584,209.74,209.66,26.84040768]
[1759170604791,7.37,209.76,209.62,11.09058234]
[1759170604998,3.18058234,209.77,209.62,3.18058234]
[1759170605198,7.37,209.73,209.63,7.91]
[1759170605595,7.37,209.77,209.66,7.91]
[1759170606501,4.2881,209.75,209.69,12.1991]
[1759170606800,7.37,209.77,209.69,12.1991]
[1759170607208,4.2879,209.76,209.69,12.1991]
[1759170607404,180.92808234,209.8,209.69,12.1991]
[1759170607599,7.37,209.79,209.69,12.1991]
[1759170607803,7.37,209.76,209.69,12.1991]
[1759170608606,7.37,209.76,209.69,7.91]
[1759170608911,7.37,209.8,209.72,7.91]
[1759170609410,7.37,209.85,209.72,7.91]
[1759170610407,7.37,209.85,209.75,7.91]
[1759170611302,7.37,209.85,209.76,4.2878]
[1759170612709,7.37,209.85,209.75,7.91]
[1759170612710,7.37,209.82,209.71,7.91]
[1759170612911,10.55058234,209.82,209.71,7.91]
[1759170613707,7.37,209.79,209.71,7.91]
[1759170613905,7.37,209.79,209.68,3.18058234]
[1759170614108,10.55058234,209.79,209.66,7.91]
[1759170614611,97.55058234,209.79,209.66,7.91]
[1759170615507,4.2882,209.75,209.69,4.2891]
[1759170615707,7.72,209.75,209.66,7.91]
[1759170617614,4.2885,209.73,209.66,12.1997]
[1759170617814,7.72,209.75,209.66,7.91]
[1759170618004,69.88208234,209.76,209.63,22.08160015]
[1759170618202,7.72,209.75,209.63,22.08160015]
[1759170618402,4.2885,209.73,209.63,22.08160015]
[1759170618611,4.2885,209.73,209.64,8.04]
[1759170619003,4.2888,209.71,209.64,8.04]
[1759170621917,7.72,209.72,209.64,8.04]
[1759170623712,4.289,209.71,209.64,8.04]
[1759170624309,4.2884,209.74,209.64,8.04]
[1759170624515,7.55,209.76,209.64,8.04]
[1759170624516,157.9704,209.76,209.64,8.04]
[1759170625316,11.8388,209.72,209.64,12.3301]
[1759170626317,11.8388,209.72,209.65,2.03702205]
[1759170626614,7.55,209.72,209.66,4.2899]
[1759170626809,6.32522205,209.74,209.59,387.013]
[1759170626810,4.2882,209.74,209.68,7.64]
[1759170627018,7.55,209.76,209.68,7.64]
[1759170627315,11.838,209.76,209.68,11.9293]
[1759170628211,11.838,209.76,209.69,6.32612205]
[1759170629812,7.55,209.76,209.69,2.03702205]
[1759170630018,9.58702205,209.76,209.68,7.64]
[1759170631719,4.2883,209.74,209.68,7.64]
[1759170632119,4.2886,209.73,209.68,7.64]
[1759170632321,7.55,209.72,209.68,7.64]
[1759170632825,4.2886,209.73,209.67,6.32662205]
[1759170633027,4.2881,209.75,209.68,7.64]
[1759170633225,4.2881,209.75,209.68,11.9293]
[1759170633426,4.2881,209.75,209.69,2.03702205]
[1759170634428,7.55,209.76,209.69,6.32612205]
[1759170635028,7.55,209.76,209.7,4.2889]
[1759170635326,7.55,209.76,209.72,7.64]
[1759170636129,11.8379,209.76,209.72,7.64]
[1759170636319,11.8379,209.76,209.71,2.03702205]
[1759170636320,7.55,209.75,209.71,2.03702205]
[1759170636518,7.55,209.75,209.69,2.03702205]
[1759170636927,11.8381,209.75,209.69,2.03702205]
[1759170637732,4.2877,209.77,209.71,2.03702205]
[1759170637933,7.55,209.79,209.73,2.03702205]
[1759170638128,4.2868,209.81,209.75,2.03702205]
[1759170638330,4.2868,209.81,209.77,9.67702205]
[1759170638833,11.8368,209.81,209.77,9.67702205]
[1759170640030,7.55,209.82,209.72,4.2886]
[1759170640230,7.55,209.82,209.73,2.03702205]
[1759170641438,4.2874,209.79,209.73,6.32532205]
[1759170641932,2.03702205,209.81,209.72,2.03702205]
[1759170642239,7.55,209.8,209.73,7.64]
[1759170642631,11.837,209.8,209.73,7.64]
[1759170642836,11.837,209.8,209.74,2.03702205]
[1759170643740,118.79702205,209.83,209.74,2.03702205]
[1759170643741,4.2866,209.82,209.76,2.03702205]
[1759170644038,7.55,209.82,209.76,2.03702205]
[1759170645640,4.2869,209.81,209.76,2.03702205]
[1759170646142,7.55,209.8,209.76,2.03702205]
[1759170646741,11.8371,209.8,209.74,13.96512205]
[1759170646942,7.55,209.8,209.74,9.67702205]
[1759170647144,7.55,209.8,209.74,2.03702205]
[1759170647546,4.2874,209.79,209.75,7.64]
[1759170647744,11.8374,209.79,209.75,7.64]
[1759170648140,7.55,209.78,209.74,2.03702205]
[1759170648737,11.8375,209.78,209.74,2.03702205]
[1759170648942,4.2875,209.78,209.74,2.03702205]
[1759170649138,4.2875,209.78,209.72,2.03702205]
[1759170649346,11.8375,209.78,209.72,2.03702205]
[1759170650141,4.2877,209.77,209.72,2.03702205]
[1759170650440,7.55,209.78,209.72,2.03702205]
[1759170651043,4.2879,209.76,209.72,2.03702205]
[1759170651243,7.55,209.75,209.71,7.64]
[1759170652242,4.2875,209.78,209.71,4.2887]
[1759170655045,4.2877,209.77,209.71,4.2887]
[1759170658751,12.0479,209.76,209.7,9.67702205]
[1759170659350,2.03702205,209.79,209.7,9.67702205]
[1759170659351,7.76,209.74,209.7,7.64]
[1759170659552,7.76,209.76,209.7,7.64]
[1759170660351,7.76,209.76,209.68,2.03702205]
[1759170660651,7.76,209.72,209.68,9.91702205]
[1759170661148,7.76,209.72,209.69,7.88]
[1759170661351,7.76,209.72,209.68,2.03702205]
[1759170661657,7.76,209.72,209.69,7.88]
[1759170662753,4.2889,209.71,209.65,12.17]
[1759170662954,7.76,209.7,209.65,12.17]
[1759170663259,7.76,209.73,209.65,12.17]
[1759170663456,7.76,209.69,209.65,7.88]
[1759170664853,4.2891,209.7,209.65,7.88]
[1759170665058,4.2891,209.7,209.64,9.91702205]
[1759170665654,4.2887,209.72,209.66,9.91702205]
[1759170666360,4.2887,209.72,209.66,14.20672205]
[1759170666853,7.76,209.76,209.68,2.03702205]
[1759170667054,7.76,209.79,209.72,2.03702205]
[1759170667255,7.76,209.88,209.79,7.88]
[1759170667459,7.76,209.88,209.79,9.91702205]
[1759170667855,7.76,209.88,209.81,2.03702205]
[1759170668161,12.0455,209.88,209.81,2.03702205]
[1759170669856,12.0455,209.88,209.81,6.32362205]
[1759170670057,7.76,209.88,209.83,9.91702205]
[1759170670457,7.76,209.88,209.84,7.88]
[1759170670759,7.76,209.88,209.83,2.03702205]
[1759170671158,7.76,209.88,209.83,9.91702205]
[1759170671355,7.76,209.88,209.84,7.88]
[1759170671550,2.39571127,209.89,209.85,2.03702205]
[1759170671754,2.39571127,209.89,209.86,7.88]
[1759170672154,7.76,209.93,209.86,7.88]
[1759170672550,12.0445,209.93,209.86,7.88]
[1759170672755,7.76,209.93,209.85,2.03702205]
[1759170673757,7.76,209.9,209.77,4.2875]
[1759170673961,9.79702205,209.9,209.8,2.03702205]
[1759170674259,9.79702205,209.9,209.81,7.35]
[1759170674461,4.2856,209.87,209.81,7.35]
[1759170674656,7.76,209.9,209.82,2.03702205]
[1759170674855,12.0452,209.9,209.81,11.6367]
[1759170675050,12.0452,209.9,209.83,2.03702205]
[1759170677855,7.57,209.87,209.81,9.38702205]
[1759170678363,7.57,209.91,209.83,2.03702205]
[1759170678954,7.57,209.91,209.84,7.35]
[1759170679159,7.57,209.91,209.85,2.03702205]
[1759170679763,7.57,209.91,209.84,9.38702205]
[1759170680467,7.57,209.91,209.82,2.03702205]
[1759170681361,7.57,209.89,209.8,9.38702205]
[1759170681562,7.57,209.89,209.8,2.03702205]
[1759170681960,7.57,209.87,209.78,2.03702205]
[1759170682165,4.286,209.86,209.78,6.32442205]
[1759170682969,7.57,209.85,209.77,7.35]
[1759170683368,2.03702205,209.84,209.77,7.35]
[1759170683764,7.57,209.81,209.77,7.35]
[1759170684072,11.8567,209.82,209.74,6.32522205]
[1759170685875,11.8567,209.82,209.75,4.2878]
[1759170686272,11.8567,209.82,209.75,12.2678]
[1759170687272,4.286,209.85,209.76,2.03702205]
[1759170687575,4.286,209.85,209.77,7.98]
[1759170688378,7.63,209.86,209.77,7.98]
[1759170689579,7.63,209.86,209.79,4.287]
[1759170689780,7.63,209.86,209.8,7.98]
[1759170690275,41.31,209.91,209.82,7.98]
[1759170690476,7.63,209.95,209.83,69.85596985]
[1759170690782,7.63,209.95,209.84,7.98]
[1759170692676,7.63,209.95,209.83,3.17886985]
[1759170692677,11.9141,209.95,209.87,12.2654]
[1759170693284,11.9141,209.95,209.88,4.2852]
[1759170693491,7.63,209.95,209.87,7.98]
[1759170693789,6.30108799,209.97,209.87,7.98]
[1759170694088,7.63,209.96,209.87,7.98]
[1759170694985,4.2843,209.94,209.87,7.98]
[1759170699290,4.2847,209.92,209.86,22.00969894]
[1759170699495,4.2847,209.92,209.86,7.46446985]
[1759170700993,11.9142,209.94,209.87,7.98]
[1759170701384,4.2845,209.93,209.87,7.98]
[1759170701991,4.2845,209.93,209.87,12.2654]
[1759170703391,7.63,209.94,209.88,4.2852]
[1759170703890,4.2839,209.96,209.88,4.2852]
[1759170705597,4.2839,209.96,209.89,4.2851]
[1759170706095,4.2841,209.95,209.89,4.2851]
[1759170706399,7.63,209.96,209.87,12.2655]
[1759170706896,4.2843,209.94,209.88,4.2853]
[1759170707898,11.9138,209.96,209.89,4.285]
[1759170708098,2.01758799,209.97,209.9,7.98]
[1759170708687,2.01758799,209.97,209.91,4.2846]
[1759170709292,2.01758799,209.97,209.9,7.98]
[1759170710094,2.01758799,209.97,209.95,7.98]
[1759170710290,120.9628,210.01,209.95,7.98]
[1759170710496,4.2831,210.0,209.95,7.98]
[1759170711294,11.9132,209.99,209.95,7.98]
[1759170711495,7.63,209.98,209.95,7.98]
[1759170712296,116.68,210.01,209.9,7.98]
[1759170712598,7.63,209.97,209.9,7.98]
[1759170713296,7.63,210.01,209.9,7.98]
[1759170713500,124.29,210.01,209.9,7.98]
[1759170714397,8.03,209.99,209.86,3.17886985]
[1759170714596,8.03,209.98,209.86,10.98886985]
[1759170714991,66.627,209.99,209.86,10.98886985]
[1759170715700,4.2842,209.94,209.88,4.2853]
[1759170716499,12.3146,209.92,209.86,7.81]
[1759170717100,4.2849,209.91,209.86,7.81]
[1759170717295,8.03,209.9,209.84,4.2861]
[1759170718304,8.03,209.9,209.85,4.2859]
[1759170718693,8.03,209.9,209.86,7.81]
[1759170719097,89.52,209.95,209.86,4.2856]
[1759170719098,4.2844,209.93,209.86,4.2856]
[1759170720605,4.2844,209.93,209.87,4.2854]
[1759170721601,8.03,209.94,209.88,4.2852]
[1759170722506,8.03,209.94,209.86,7.81]
[1759170722507,12.3142,209.94,209.86,12.0957]
[1759170722706,12.3142,209.94,209.86,7.81]
[1759170723907,8.03,209.94,209.86,7.81]
[1759170724408,12.3142,209.94,209.87,4.2855]
[1759170725708,12.3142,209.94,209.88,4.2852]
[1759170726111,8.03,209.94,209.86,7.81]
[1759170726313,8.03,209.97,209.88,7.81]
[1759170726513,8.03,210.01,209.92,3.17886985]
[1759170726813,8.03,210.01,209.93,7.81]
[1759170728213,8.03,210.01,209.95,4.2838]
[1759170729818,8.03,210.02,209.96,4.2836]
[1759170730317,8.03,210.02,209.96,12.0936]
[1759170731410,8.03,210.02,209.94,4.2841]
[1759170732022,8.03,209.99,209.92,15.27336985]
[1759170732221,66.6185,210.02,209.88,7.81]
[1759170732411,8.03,210.01,209.88,7.81]
[1759170732813,4.283,210.0,209.91,7.81]
[1759170733420,4.283,210.0,209.94,7.81]
[1759170733915,12.3132,209.99,209.91,4.2847]
[1759170734515,12.3132,209.99,209.92,4.2844]
[1759170737222,12.3132,209.99,209.93,4.2842]
[1759170737427,4.2827,210.01,209.91,7.45]
[1759170737627,4.2827,210.01,209.93,3.17886985]
[1759170737824,4.2827,210.01,209.94,7.45]
[1759170738717,4.2827,210.01,209.95,4.2838]
[1759170739126,7.46,210.03,209.95,4.2838]
[1759170739127,11.7424,210.03,209.95,4.2838]
[1759170740832,11.7424,210.03,209.94,7.45]
[1759170741226,11.7424,210.03,209.97,4.2834]
[1759170741925,4.2819,210.05,209.98,4.2832]
[1759170742121,7.46,210.06,209.97,7.45]
[1759170742527,0.82891681,210.07,209.97,7.45]
[1759170742721,77.24436985,210.06,209.95,4.2839]
[1759170742927,7.46,210.04,209.93,7.45]
[1759170744130,4.283,210.0,209.94,4.284]
[1759170744330,11.793,210.0,209.94,4.284]
[1759170746233,7.51,210.0,209.95,12.3038]
[1759170747338,4.2828,210.01,209.95,12.3038]
[1759170747534,11.7928,210.01,209.95,12.3038]
[1759170747736,7.51,210.01,209.91,8.02]
[1759170748631,4.283,210.0,209.94,4.284]
[1759170749542,66.6175,210.02,209.91,12.3047]
[1759170749838,7.51,210.02,209.91,8.02]
[1759170750226,9.54142715,210.02,209.93,2.03142715]
[1759170750425,9.54142715,210.02,209.94,8.02]
[1759170750628,7.51,209.99,209.91,2.03142715]
[1759170751536,2.03142715,210.0,209.94,4.284]
[1759170752241,6.31442715,210.0,209.94,4.284]
[1759170753642,7.51,210.01,209.93,10.05142715]
[1759170754635,7.51,210.01,209.95,4.2838]
[1759170754941,7.51,210.01,209.94,8.02]
[1759170755338,11.792,210.05,209.96,8.02]